fUSD/lending_fUSD_20260404
["ID","MTS","AMOUNT","RATE_DAILY","PERIOD"]
[419680686,1775280662038,-984.19,0.00035726,9]
[419680687,1775280662047,-500.0,0.00035726,9]
[419680688,1775280662056,-500.0,0.00035726,9]
[419680689,1775280662066,-568.23571446,0.00035726,9]
[419680690,1775280662077,-500.0,0.00035726,9]
[419680691,1775280662087,-500.0,0.00035726,9]
[419680692,1775280662095,-500.0,0.00035726,9]
[419680693,1775280662105,-500.0,0.00035726,9]
[419680694,1775280662114,-500.0,0.00035726,9]
[419680695,1775280662124,-735.78,0.00035726,9]
[419680696,1775280662133,-500.0,0.00035726,9]
[419680697,1775280662142,-500.0,0.00035726,9]
[419680698,1775280662153,-500.0,0.00035726,9]
[419680699,1775280662162,-310.26313765,0.00035726,9]
[419680700,1775280662171,-500.0,0.00035726,9]
[419680701,1775280662180,-500.0,0.00035726,9]
[419680702,1775280662189,-500.0,0.00035726,9]
[419680703,1775280662198,-500.0,0.00035726,9]
[419680704,1775280662208,-560.5,0.00035726,9]
[419680705,1775280662217,-500.0,0.00035726,9]
[419680706,1775280662226,-608.32462609,0.00035726,9]
[419680707,1775280662235,-517.96,0.00035726,9]
[419680708,1775280662244,-500.0,0.00035726,9]
[419680709,1775280662253,-500.0,0.00035726,9]
[419680710,1775280662262,-500.0,0.00035726,9]
[419680711,1775280662271,-534.86478472,0.00035726,9]
[419680712,1775280662280,-500.0,0.00035726,9]
[419680713,1775280662290,-500.0,0.00035726,9]
[419680714,1775280662301,-500.0,0.00035726,9]
[419680715,1775280662310,-500.0,0.00035726,9]
[419680716,1775280662319,-500.0,0.00035726,9]
[419680717,1775280662329,-500.0,0.00035726,9]
[419680718,1775280662338,-360.32772326,0.00035726,9]
[419680719,1775280662347,-703.63,0.00035726,9]
[419680720,1775280662356,-472.43211745,0.00035726,9]
[419680721,1775280662366,-500.0,0.00035726,9]
[419680722,1775280662374,-500.0,0.00035726,9]
[419680723,1775280662385,-500.0,0.00035726,9]
[419680724,1775280662396,-300.0,0.00035726,2]
[419680725,1775280662405,-500.0,0.00035726,9]
[419680726,1775280662414,-500.0,0.00035726,9]
[419680727,1775280662423,-1469.43,0.00035726,9]
[419680728,1775280662432,-500.0,0.00035726,9]
[419680729,1775280662441,-500.0,0.00035726,5]
[419680730,1775280662450,-532.54828273,0.00035726,9]
[419680731,1775280662459,-257.37735891,0.00035726,9]
[419680732,1775280662469,-500.0,0.00035726,9]
[419680733,1775280662478,-500.0,0.00035726,9]
[419680734,1775280662487,-500.0,0.00035726,9]
[419680735,1775280662496,-500.0,0.00035726,9]
[419680736,1775280662505,-783.24,0.00035726,9]
[419680737,1775280662516,-1424.16,0.00035726,9]
[419680738,1775280662524,-500.0,0.00035726,9]
[419680739,1775280662533,-639.67812652,0.00035726,9]
[419680740,1775280662542,-500.0,0.00035726,9]
[419680741,1775280662553,-412.23241479,0.00035726,9]
[419680742,1775280662562,-500.0,0.00035726,9]
[419680743,1775280662571,-500.0,0.00035726,9]
[419680744,1775280662580,-500.0,0.00035726,9]
[419680745,1775280662589,-500.0,0.00035726,9]
[419680746,1775280662598,-500.0,0.00035726,9]
[419680747,1775280662610,-500.0,0.00035726,9]
[419680748,1775280662619,-456.7128413,0.00035726,9]
[419680749,1775280662629,-500.0,0.00035726,9]
[419680750,1775280662638,-968.63,0.00035726,9]
[419680751,1775280662647,-255.1357773,0.00035726,9]
[419680752,1775280662656,-500.0,0.00035726,9]
[419680753,1775280662665,-1208.88,0.00035726,9]
[419680754,1775280662674,-500.0,0.00035726,9]
[419680755,1775280662683,-500.0,0.00035726,9]
[419680756,1775280662691,-500.0,0.00035726,9]
[419680757,1775280662700,-500.0,0.00035726,9]
[419680758,1775280662710,-500.0,0.00035726,9]
[419680759,1775280662719,-500.0,0.00035726,9]
[419680760,1775280662728,-500.0,0.00035726,9]
[419680761,1775280662739,-500.0,0.00035726,9]
[419680762,1775280662748,-359.36877212,0.00035726,9]
[419680763,1775280662757,-500.0,0.00035726,9]
[419680764,1775280662766,-500.0,0.00035726,9]
[419680765,1775280662775,-500.0,0.00035726,9]
[419680766,1775280662784,-319.45921997,0.00035726,9]
[419680767,1775280662794,-500.0,0.00035726,9]
[419680768,1775280662803,-217.54652259,0.00035726,9]
[419680769,1775280662812,-640.15,0.00035726,9]
[419680770,1775280662822,-500.0,0.00035726,9]
[419680771,1775280662831,-500.0,0.00035726,9]
[419680772,1775280662840,-500.0,0.00035726,9]
[419680773,1775280662849,-500.0,0.00035726,9]
[419680774,1775280662859,-500.0,0.00035726,9]
[419680775,1775280662868,-515.01628507,0.00035726,9]
[419680776,1775280662878,-500.0,0.00035726,9]
[419680777,1775280662887,-500.0,0.00035726,9]
[419680778,1775280662896,-500.0,0.00035726,9]
[419680779,1775280662906,-500.0,0.00035726,9]
[419680780,1775280662915,-500.0,0.00035726,9]
[419680781,1775280662924,-500.0,0.00035726,9]
[419680782,1775280662934,-500.0,0.00035726,9]
[419680783,1775280662943,-500.0,0.00035726,9]
[419680784,1775280662952,-500.0,0.00035726,9]
[419680785,1775280662962,-2077.05,0.00035726,9]
[419680786,1775280662971,-500.0,0.00035726,9]
[419680787,1775280662980,-500.0,0.00035726,9]
[419680788,1775280662990,-500.0,0.00035726,9]
[419680789,1775280662999,-565.97634396,0.00035726,9]
[419680790,1775280663008,-500.0,0.00035726,9]
[419680791,1775280663017,-500.0,0.00035726,9]
[419680792,1775280663026,-500.0,0.00035726,9]
[419680793,1775280663036,-500.0,0.00035726,9]
[419680794,1775280663045,-500.0,0.00035726,9]
[419680795,1775280663054,-500.0,0.00035726,9]
[419680796,1775280663063,-500.0,0.00035726,9]
[419680797,1775280663072,-500.0,0.00035726,2]
[419680798,1775280663080,-500.0,0.00035726,9]
[419680799,1775280663090,-630.66034851,0.00035726,9]
[419680800,1775280663099,-918.91,0.00035726,9]
[419680801,1775280663108,-284.98873899,0.00035726,9]
[419680802,1775280663117,-500.0,0.00035726,9]
[419680803,1775280663126,-500.0,0.00035726,9]
[419680804,1775280663135,-500.0,0.00035726,9]
[419680805,1775280663144,-500.0,0.00035726,9]
[419680806,1775280663153,-500.0,0.00035726,9]
[419680807,1775280663162,-606.54,0.00035726,9]
[419680808,1775280663171,-500.0,0.00035726,9]
[419680809,1775280663180,-500.0,0.00035726,9]
[419680810,1775280663189,-723.75,0.00035726,9]
[419680811,1775280663198,-500.0,0.00035726,9]
[419680812,1775280663207,-500.0,0.00035726,9]
[419680813,1775280663216,-1422.15,0.00035726,9]
[419680814,1775280663225,-500.0,0.00035726,9]
[419680815,1775280663233,-500.0,0.00035726,9]
[419680816,1775280663242,-529.30259359,0.00035726,9]
[419680817,1775280663251,-352.1409317,0.00035726,9]
[419680818,1775280663260,-500.0,0.00035726,9]
[419680819,1775280663269,-500.0,0.00035726,9]
[419680820,1775280663278,-500.0,0.00035726,9]
[419680821,1775280663288,-1455.47,0.00035726,9]
[419680822,1775280663297,-500.0,0.00035726,9]
[419680823,1775280663306,-500.0,0.00035726,9]
[419680824,1775280663315,-1430.79,0.00035726,9]
[419680825,1775280663324,-500.0,0.00035726,9]
[419680826,1775280663333,-734.9,0.00035726,9]
[419680827,1775280663343,-500.0,0.00035726,9]
[419680828,1775280663352,-500.0,0.00035726,9]
[419680829,1775280663361,-500.0,0.00035726,9]
[419680830,1775280663370,-521.47435367,0.00035726,9]
[419680831,1775280663379,-802.74,0.00035726,9]
[419680832,1775280663389,-835.82,0.00035726,9]
[419680833,1775280663399,-500.0,0.00035726,9]
[419680834,1775280663408,-798.67,0.00035726,9]
[419680835,1775280663419,-500.0,0.00035726,9]
[419680836,1775280663429,-500.0,0.00035726,9]
[419680837,1775280663437,-186.53423692,0.00035726,9]
[419680838,1775280663446,-500.0,0.00035726,9]
[419680839,1775280663455,-500.0,0.00035726,9]
[419680840,1775280663464,-500.0,0.00035726,9]
[419680841,1775280663474,-500.0,0.00035726,9]
[419680842,1775280663484,-901.72,0.00035726,9]
[419680843,1775280663494,-500.0,0.00035726,9]
[419680844,1775280663504,-500.0,0.00035726,9]
[419680845,1775280663513,-500.0,0.00035726,9]
[419680846,1775280663522,-500.0,0.00035726,9]
[419680847,1775280663532,-1123.46,0.00035726,9]
[419680848,1775280663542,-1044.33,0.00035726,9]
[419680849,1775280663553,-1230.08,0.00035726,9]
[419680850,1775280663564,-500.0,0.00035726,9]
[419680851,1775280663575,-1693.82,0.00035726,9]
[419680852,1775280663585,-500.0,0.00035726,9]
[419680853,1775280663595,-500.0,0.00035726,9]
[419680854,1775280663604,-500.0,0.00035726,9]
[419680855,1775280663612,-500.0,0.00035726,2]
[419680856,1775280663621,-1596.49,0.00035726,9]
[419680857,1775280663630,-500.0,0.00035726,9]
[419680858,1775280663639,-500.0,0.00035726,9]
[419680859,1775280663647,-500.0,0.00035726,9]
[419680860,1775280663656,-500.0,0.00035726,9]
[419680861,1775280663665,-1061.35,0.00035726,9]
[419680862,1775280663674,-500.0,0.00035726,9]
[419680863,1775280663683,-1492.49,0.00035726,9]
[419680864,1775280663692,-500.0,0.00035726,9]
[419680865,1775280663701,-500.0,0.00035726,9]
[419680866,1775280663710,-500.0,0.00035726,9]
[419680867,1775280663719,-500.0,0.00035726,9]
[419680868,1775280663728,-500.0,0.00035726,9]
[419680869,1775280663737,-550.97,0.00035726,9]
[419680870,1775280663746,-500.0,0.00035726,9]
[419680871,1775280663754,-653.46,0.00035726,9]
[419680872,1775280663763,-500.0,0.00035726,9]
[419680873,1775280663772,-500.0,0.00035726,9]
[419680874,1775280663781,-500.0,0.00035726,9]
[419680875,1775280663790,-500.0,0.00035726,9]
[419680876,1775280663799,-500.0,0.00035726,9]
[419680877,1775280663808,-500.0,0.00035726,9]
[419680878,1775280663818,-1492.94,0.00035726,7]
[419680879,1775280663827,-500.0,0.00035726,9]
[419680880,1775280663836,-500.0,0.00035726,9]
[419680881,1775280663847,-1209.29,0.00035726,9]
[419680882,1775280663857,-500.0,0.00035726,9]
[419680883,1775280663866,-500.0,0.00035726,9]
[419680884,1775280663878,-430.23622473,0.00035726,9]
[419680885,1775280663887,-504.2,0.00035726,9]
[419680886,1775280663896,-500.0,0.00035726,9]
[419680887,1775280663905,-1338.82,0.00035726,9]
[419680888,1775280663915,-500.0,0.00035726,9]
[419680889,1775280663925,-500.0,0.00035726,9]
[419680890,1775280663936,-891.16,0.00035726,9]
[419680891,1775280663945,-500.0,0.00035726,9]
[419680892,1775280663954,-500.0,0.00035726,9]
[419680893,1775280663963,-1892.58,0.00035726,9]
[419680894,1775280663972,-500.0,0.00035726,9]
[419680895,1775280663981,-500.0,0.00035726,9]
[419680896,1775280663990,-500.0,0.00035726,9]
[419680897,1775280663999,-500.0,0.00035726,9]
[419680898,1775280664008,-500.0,0.00035726,9]
[419680899,1775280664018,-500.0,0.00035726,9]
[419680900,1775280664027,-500.0,0.00035726,9]
[419680901,1775280664036,-1108.7,0.00035726,9]
[419680902,1775280664045,-500.0,0.00035726,9]
[419680903,1775280664055,-500.0,0.00035726,9]
[419680904,1775280664064,-500.0,0.00035726,9]
[419680905,1775280664072,-480.74196206,0.00035726,9]
[419680906,1775280664083,-500.0,0.00035726,9]
[419680907,1775280664092,-500.0,0.00035726,9]
[419680908,1775280664102,-500.0,0.00035726,9]
[419680909,1775280664113,-500.0,0.00035726,9]
[419680910,1775280664123,-1457.69,0.00035726,9]
[419680911,1775280664133,-500.0,0.00035726,9]
[419680912,1775280664143,-500.0,0.00035726,9]
[419680913,1775280664152,-284.19134253,0.00035726,9]
[419680914,1775280664161,-500.0,0.00035726,9]
[419680915,1775280664171,-634.0,0.00035726,9]
[419680916,1775280664180,-500.0,0.00035726,9]
[419680917,1775280664189,-500.0,0.00035726,9]
[419680918,1775280664199,-500.0,0.00035726,9]
[419680919,1775280664210,-500.0,0.00035726,9]
[419680920,1775280664219,-500.0,0.00035726,9]
[419680921,1775280664228,-935.11,0.00035726,9]
[419680922,1775280664239,-901.08,0.00035726,9]
[419680923,1775280664249,-500.0,0.00035726,9]
[419680924,1775280664258,-500.0,0.00035726,9]
[419680925,1775280664267,-500.0,0.00035726,9]
[419680926,1775280664276,-500.0,0.00035726,9]
[419680927,1775280664285,-500.0,0.00035726,9]
[419680928,1775280664294,-500.0,0.00035726,9]
[419680929,1775280664304,-500.0,0.00035726,9]
[419680930,1775280664313,-500.0,0.00035726,9]
[419680931,1775280664321,-500.0,0.00035726,9]
[419680932,1775280664329,-990.0,0.00035726,9]
[419680933,1775280664338,-500.0,0.00035726,9]
[419680934,1775280664346,-500.0,0.00035726,9]
[419680935,1775280664356,-500.0,0.00035726,9]
[419680936,1775280664366,-500.0,0.00035726,9]
[419680937,1775280664377,-579.36940519,0.00035726,9]
[419680938,1775280664388,-504.39249861,0.00035726,9]
[419680939,1775280664398,-770.94,0.00035726,9]
[419680940,1775280664409,-500.0,0.00035726,9]
[419680941,1775280664419,-500.0,0.00035726,9]
[419680942,1775280664429,-500.0,0.00035726,9]
[419680943,1775280664441,-500.0,0.00035726,9]
[419680944,1775280664451,-500.0,0.00035726,9]
[419680945,1775280664460,-932.82,0.00035726,9]
[419680946,1775280664470,-500.0,0.00035726,9]
[419680947,1775280664479,-500.0,0.00035726,9]
[419680948,1775280664489,-500.0,0.00035726,9]
[419680949,1775280664498,-500.0,0.00035726,9]
[419680950,1775280664508,-500.0,0.00035726,9]
[419680951,1775280664518,-500.0,0.00035726,9]
[419680952,1775280664527,-500.0,0.00035726,9]
[419680953,1775280664537,-500.0,0.00035726,9]
[419680954,1775280664546,-500.0,0.00035726,9]
[419680955,1775280664556,-500.0,0.00035726,9]
[419680956,1775280664565,-500.0,0.00035726,9]
[419680957,1775280664575,-500.0,0.00035726,9]
[419680958,1775280664584,-500.0,0.00035726,9]
[419680959,1775280664594,-1194.92,0.00035726,9]
[419680960,1775280664604,-500.0,0.00035726,9]
[419680961,1775280664613,-500.0,0.00035726,9]
[419680962,1775280664623,-500.0,0.00035726,9]
[419680963,1775280664633,-500.0,0.00035726,9]
[419680964,1775280664643,-500.0,0.00035726,9]
[419680965,1775280664653,-1294.2,0.00035726,9]
[419680966,1775280664662,-500.0,0.00035726,9]
[419680967,1775280664673,-525.3405753,0.00035726,9]
[419680968,1775280664682,-500.0,0.00035726,9]
[419680969,1775280664692,-500.0,0.00035726,9]
[419680970,1775280664702,-500.0,0.00035726,9]
[419680971,1775280664711,-610.34,0.00035726,9]
[419680972,1775280664721,-500.0,0.00035726,9]
[419680973,1775280664732,-711.02,0.00035726,9]
[419680974,1775280664742,-500.0,0.00035726,9]
[419680975,1775280664751,-500.0,0.00035726,9]
[419680976,1775280664761,-500.0,0.00035726,9]
[419680977,1775280664772,-382.02877361,0.00035726,9]
[419680978,1775280664783,-374.78466608,0.00035726,9]
[419680979,1775280664792,-521.17,0.00035726,9]
[419680980,1775280664803,-523.09,0.00035726,9]
[419680981,1775280664812,-505.81,0.00035726,9]
[419680982,1775280664822,-744.02,0.00035726,9]
[419680983,1775280664831,-500.0,0.00035726,9]
[419680984,1775280664841,-500.0,0.00035726,9]
[419680985,1775280664851,-477.49357101,0.00035726,9]
[419680986,1775280664860,-500.0,0.00035726,9]
[419680987,1775280664871,-590.44,0.00035726,9]
[419680988,1775280664881,-2226.41,0.00035726,9]
[419680989,1775280664890,-500.0,0.00035726,9]
[419680990,1775280664900,-500.0,0.00035726,9]
[419680991,1775280664910,-500.0,0.00035726,9]
[419680992,1775280664920,-500.0,0.00035726,9]
[419680993,1775280664930,-1037.6,0.00035726,9]
[419680994,1775280664940,-500.0,0.00035726,9]
[419680995,1775280664949,-663.14,0.00035726,9]
[419680996,1775280664959,-500.0,0.00035726,9]
[419680997,1775280664968,-500.0,0.00035726,9]
[419680998,1775280664978,-500.0,0.00035726,9]
[419680999,1775280664988,-512.43087606,0.00035726,9]
[419681000,1775280664998,-500.0,0.00035726,9]
[419681001,1775280665009,-500.0,0.00035726,9]
[419681002,1775280665019,-500.0,0.00035726,9]
[419681003,1775280665029,-609.59,0.00035726,9]
[419681004,1775280665039,-500.0,0.00035726,9]
[419681005,1775280665049,-1020.17,0.00035726,9]
[419681006,1775280665059,-500.0,0.00035726,9]
[419681007,1775280665068,-162.49335023,0.00035726,9]
[419681008,1775280665078,-500.0,0.00035726,9]
[419681009,1775280665088,-500.0,0.00035726,9]
[419681010,1775280665098,-500.0,0.00035726,9]
[419681011,1775280665109,-500.0,0.00035726,9]
[419681012,1775280665118,-500.0,0.00035726,9]
[419681013,1775280665128,-1585.05,0.00035726,9]
[419681014,1775280665138,-1171.59,0.00035726,9]
[419681015,1775280665148,-1101.01,0.00035726,9]
[419681016,1775280665158,-500.0,0.00035726,9]
[419681017,1775280665168,-500.0,0.00035726,9]
[419681018,1775280665178,-500.0,0.00035726,9]
[419681019,1775280665187,-500.0,0.00035726,9]
[419681020,1775280665197,-500.0,0.00035726,9]
[419681021,1775280665207,-1263.62,0.00035726,9]
[419681022,1775280665216,-631.83,0.00035726,9]
[419681023,1775280665226,-500.0,0.00035726,9]
[419681024,1775280665235,-500.0,0.00035726,9]
[419681025,1775280665245,-500.0,0.00035726,9]
[419681026,1775280665255,-500.0,0.00035726,9]
[419681027,1775280665264,-500.0,0.00035726,9]
[419681028,1775280665274,-500.0,0.00035726,9]
[419681029,1775280665284,-192.57158403,0.00035726,9]
[419681030,1775280665293,-500.0,0.00035726,9]
[419681031,1775280665304,-277.97734841,0.00035726,9]
[419681032,1775280665315,-500.0,0.00035726,9]
[419681033,1775280665326,-898.46,0.00035726,9]
[419681034,1775280665338,-500.0,0.00035726,9]
[419681035,1775280665347,-500.0,0.00035726,9]
[419681036,1775280665357,-500.0,0.00035726,9]
[419681037,1775280665367,-1196.16,0.00035726,9]
[419681038,1775280665378,-500.0,0.00035726,9]
[419681039,1775280665388,-814.86,0.00035726,9]
[419681040,1775280665397,-500.0,0.00035726,9]
[419681041,1775280665407,-500.0,0.00035726,9]
[419681042,1775280665416,-500.0,0.00035726,9]
[419681043,1775280665426,-500.0,0.00035726,9]
[419681044,1775280665435,-500.0,0.00035726,9]
[419681045,1775280665445,-500.0,0.00035726,9]
[419681046,1775280665455,-500.0,0.00035726,9]
[419681047,1775280665465,-500.0,0.00035726,9]
[419681048,1775280665475,-399.1164363,0.00035726,9]
[419681049,1775280665485,-500.0,0.00035726,9]
[419681050,1775280665495,-755.32,0.00035726,9]
[419681051,1775280665505,-500.0,0.00035726,9]
[419681052,1775280665515,-500.0,0.00035726,9]
[419681053,1775280665525,-500.0,0.00035726,9]
[419681054,1775280665534,-500.0,0.00035726,9]
[419681055,1775280665544,-629.02,0.00035726,9]
[419681056,1775280665553,-500.0,0.00035726,9]
[419681057,1775280665563,-500.0,0.00035726,9]
[419681058,1775280665573,-500.0,0.00035726,9]
[419681059,1775280665582,-1238.58,0.00035726,9]
[419681060,1775280665592,-500.0,0.00035726,9]
[419681061,1775280665602,-500.0,0.00035726,9]
[419681062,1775280665612,-729.81,0.00035726,9]
[419681063,1775280665621,-500.0,0.00035726,9]
[419681064,1775280665631,-500.0,0.00035726,9]
[419681065,1775280665640,-500.0,0.00035726,9]
[419681066,1775280665650,-500.0,0.00035726,9]
[419681067,1775280665660,-500.0,0.00035726,9]
[419681068,1775280665670,-500.0,0.00035726,9]
[419681069,1775280665679,-500.0,0.00035726,9]
[419681070,1775280665689,-500.0,0.00035726,9]
[419681071,1775280665699,-500.14878252,0.00035726,9]
[419681072,1775280665708,-500.0,0.00035726,9]
[419681073,1775280665719,-500.0,0.00035726,9]
[419681074,1775280665729,-893.0,0.00035726,9]
[419681075,1775280665739,-534.71590412,0.00035726,9]
[419681076,1775280665748,-2230.54,0.00035726,9]
[419681077,1775280665759,-500.0,0.00035726,9]
[419681078,1775280665768,-500.0,0.00035726,9]
[419681079,1775280665778,-500.0,0.00035726,9]
[419681080,1775280665788,-500.0,0.00035726,9]
[419681081,1775280665798,-1378.5,0.00035726,9]
[419681082,1775280665808,-500.0,0.00035726,9]
[419681083,1775280665818,-500.0,0.00035726,9]
[419681084,1775280665828,-500.0,0.00035726,9]
[419681085,1775280665838,-500.0,0.00035726,9]
[419681086,1775280665848,-500.0,0.00035726,9]
[419681087,1775280665857,-610.31116317,0.00035726,9]
[419681088,1775280665867,-500.0,0.00035726,9]
[419681089,1775280665877,-1067.13,0.00035726,9]
[419681090,1775280665886,-1884.9,0.00035726,9]
[419681091,1775280665896,-560.74,0.00035726,9]
[419681092,1775280665905,-500.0,0.00035726,9]
[419681093,1775280665915,-500.0,0.00035726,9]
[419681094,1775280665924,-500.0,0.00035726,9]
[419681095,1775280665934,-500.0,0.00035726,9]
[419681096,1775280665944,-500.0,0.00035726,9]
[419681097,1775280665954,-1331.36,0.00035726,9]
[419681098,1775280665964,-500.0,0.00035726,9]
[419681099,1775280665974,-500.0,0.00035726,9]
[419681100,1775280665984,-500.0,0.00035726,9]
[419681101,1775280665993,-500.0,0.00035726,9]
[419681102,1775280666003,-500.0,0.00035726,9]
[419681103,1775280666012,-500.0,0.00035726,9]
[419681104,1775280666023,-500.0,0.00035726,9]
[419681105,1775280666032,-651.88,0.00035726,9]
[419681106,1775280666042,-311.93406881,0.00035726,9]
[419681107,1775280666051,-500.0,0.00035726,9]
[419681108,1775280666061,-500.0,0.00035726,9]
[419681109,1775280666071,-500.0,0.00035726,9]
[419681110,1775280666080,-500.0,0.00035726,9]
[419681111,1775280666090,-500.0,0.00035726,9]
[419681112,1775280666100,-802.51,0.00035726,9]
[419681113,1775280666111,-500.0,0.00035726,9]
[419681114,1775280666121,-500.0,0.00035726,9]
[419681115,1775280666131,-668.57,0.00035726,9]
[419681116,1775280666140,-500.0,0.00035726,9]
[419681117,1775280666150,-500.0,0.00035726,9]
[419681118,1775280666160,-709.22,0.00035726,9]
[419681119,1775280666170,-1148.11,0.00035726,9]
[419681120,1775280666179,-614.06,0.00035726,9]
[419681121,1775280666189,-500.0,0.00035726,9]
[419681122,1775280666198,-644.19028978,0.00035726,9]
[419681123,1775280666208,-500.0,0.00035726,9]
[419681124,1775280666217,-1164.93,0.00035726,9]
[419681125,1775280666227,-500.0,0.00035726,9]
[419681126,1775280666237,-500.0,0.00035726,9]
[419681127,1775280666470,-2086.14,0.00035726,9]
[419681128,1775280666479,-500.0,0.00035726,9]
[419681129,1775280666489,-811.2,0.00035726,9]
[419681130,1775280666500,-554.8,0.00035726,9]
[419681131,1775280666509,-500.0,0.00035726,9]
[419681132,1775280666519,-597.75,0.00035726,9]
[419681133,1775280666529,-623.4,0.00035726,9]
[419681134,1775280666538,-500.0,0.00035726,9]
[419681135,1775280666547,-1141.03,0.00035726,9]
[419681136,1775280666557,-1995.89,0.00035726,9]
[419681137,1775280666567,-500.0,0.00035726,9]
[419681138,1775280666576,-442.56457978,0.00035726,9]
[419681139,1775280666586,-694.19,0.00035726,9]
[419681140,1775280666595,-13734.68,0.00035726,9]
[419681141,1775280666604,-500.0,0.00035726,9]
[419681142,1775280666613,-500.0,0.00035726,9]
[419681143,1775280666623,-500.0,0.00035726,9]
[419681144,1775280666632,-810.03,0.00035726,9]
[419681145,1775280666641,-500.0,0.00035726,9]
[419681146,1775280666650,-500.0,0.00035726,9]
[419681147,1775280666660,-500.0,0.00035726,9]
[419681148,1775280666669,-907.86,0.00035726,9]
[419681149,1775280666678,-500.0,0.00035726,9]
[419681150,1775280666687,-3684.53,0.00035726,9]
[419681151,1775280666695,-1590.77,0.00035726,9]
[419681152,1775280666704,-2383.6,0.00035726,9]
[419681153,1775280666713,-500.0,0.00035726,9]
[419681154,1775280666722,-500.0,0.00035726,9]
[419681155,1775280666732,-500.0,0.00035726,9]
[419681156,1775280666742,-500.0,0.00035726,9]
[419681157,1775280666752,-500.0,0.00035726,9]
[419681158,1775280666762,-500.0,0.00035726,9]
[419681159,1775280666773,-500.0,0.00035726,9]
[419681160,1775280666783,-851.14,0.00035726,9]
[419681161,1775280666792,-500.0,0.00035726,9]
[419681162,1775280666802,-500.0,0.00035726,9]
[419681163,1775280666811,-500.0,0.00035726,9]
[419681164,1775280666820,-526.46295543,0.00035726,9]
[419681165,1775280666830,-1104.72,0.00035726,9]
[419681166,1775280666840,-500.0,0.00035726,9]
[419681167,1775280666850,-322.4510202,0.00035726,9]
[419681168,1775280666859,-500.0,0.00035726,9]
[419681169,1775280666869,-500.0,0.00035726,9]
[419681170,1775280666879,-914.08,0.00035726,9]
[419681171,1775280666889,-500.0,0.00035726,9]
[419681172,1775280666899,-500.0,0.00035726,9]
[419681173,1775280666908,-500.0,0.00035726,9]
[419681174,1775280666919,-1858.66,0.00035726,9]
[419681175,1775280666929,-500.0,0.00035726,9]
[419681176,1775280666938,-514.88,0.00035726,9]
[419681177,1775280666948,-500.0,0.00035726,9]
[419681178,1775280666958,-500.0,0.00035726,9]
[419681179,1775280666968,-527.65290383,0.00035726,9]
[419681180,1775280666978,-326.59906583,0.00035726,9]
[419681181,1775280666988,-2761.74,0.00035726,9]
[419681182,1775280666998,-1126.74,0.00035726,9]
[419681183,1775280667009,-504.82,0.00035726,9]
[419681184,1775280667020,-2760.69,0.00035726,9]
[419681185,1775280667031,-783.55,0.00035726,9]